Cogmind - Beta 16 @@@ ROGUE MODE // 2025.12.30 @ 23:18:52 Player: telemetry Result: Destroyed by 66-K9A(j) with Overtuned Pulse Rifle Performance ------------- Evolutions (0) 0 Regions Visited (3) 600 Robots Destroyed (27) 135 Value Destroyed (627) 627 Prototype IDs (24) 480 Alien Tech Used (0) 0 Bonus (800) 800 TOTAL SCORE: 2642 Bonus ------- Registered with UFD 300 Met Optimus in HQ 500 Cogmind --------- Core Integrity 0/250 Matter 300/300 Energy 99/100 System Corruption 1% Temperature Cool (12) Movement Core (50) Location -8/Scraptown Parts ------- > --- POWER (1) -------- (None) > --- PROPULSION (2) --- (None) > --- UTILITY (2) ------ (None) > --- WEAPON (2) ------- Axe > --- INVENTORY (5) ---- Light Deuterium Engine Active Sensor Suite Subdweller Shrapnel Launcher Peak State ------------ > --- POWER ------------ Subdweller Power Source Light Nuclear Core > --- PROPULSION ------- Armored Wheel Cesium-ion Thruster Nuclear Pulse Thruster > --- UTILITY ---------- Large Storage Unit Structural Scanner Tower Shield > --- WEAPON ----------- Subdweller Laser Subdweller Machine Gun Subdweller Shrapnel Launcher Axe > --- INVENTORY -------- Small Storage Unit Active Sensor Suite Transmission Jammer Advanced ECM Suite Scrap Shield Scrap Shield Makeshift System Shield Barrage Gun Overtuned Railgun Scrap Shield Fragment [Rating: 52] Favorites ----------- Power Subdweller Power Source Engine Subdweller Power Source Power Core Light Nuclear Core Propulsion Subdweller Monowheel Treads Light Treads Wheel Subdweller Monowheel Flight Unit Nuclear Pulse Thruster Utility Structural Scanner Device Structural Scanner Storage Large Storage Unit Processor Targeting Computer Protection Tower Shield Weapon Subdweller Laser Energy Gun Subdweller Laser Ballistic Gun Subdweller Machine Gun Launcher Subdweller Shrapnel Launcher Impact Weapon Hammer Slashing Weapon Axe Build | -11 -10 -10 -8 ------- Run | Yrd Mat Sub Scr Slots Evolved . | . . . . Power . | . . . . Propulsion . | . . . . Utility . | . . . . Weapon . | . . . . Parts Attached 38 | 6 11 10 11 Power 7 | 1 1 2 3 Engine 6 | 1 1 2 2 Core 1 | . . . 1 Reactor . | . . . . Propulsion 13 | 2 4 3 4 Treads 2 | 2 . . . Leg . | . . . . Wheel 7 | . 2 3 2 Hover . | . . . . Flight 4 | . 2 . 2 Utility 7 | 1 3 2 1 Device 2 | . 1 . 1 Storage 3 | 1 2 . . Processor 1 | . . 1 . Hackware . | . . . . Protection 1 | . . 1 . Artifact . | . . . . Weapon 11 | 2 3 3 3 Energy Gun 2 | . . 1 1 Energy Cannon . | . . . . Ballistic Gun 5 | 2 2 1 . Ballistic Cannon . | . . . . Launcher 2 | . . 1 1 Special Weapon . | . . . . Impact Weapon 1 | . 1 . . Slashing Weapon 1 | . . . 1 Piercing Weapon . | . . . . Special Melee Weapon . | . . . . Unidentified Prototypes . | . . . . Parts Lost 6 | . 2 1 3 Power 2 | . 1 . 1 Propulsion 3 | . 1 1 1 Utility 1 | . . . 1 Weapon . | . . . . Highest Loss Streak 2 | . 2 1 2 To Critical Strikes . | . . . . Average Backups 8 | 1 6 7 9 Power . | . . . . Propulsion . | . 1 . . Utility 4 | . 2 3 5 Weapon 3 | . 2 4 3 Tool/Special . | . . . . Unused Backups 16 | . 2 1 13 Power 1 | . 1 . . Propulsion 1 | . . . 1 Utility 6 | . . 1 5 Weapon 8 | . 1 . 7 Tool/Special . | . . . . Average Slot Usage (%) 83 | . 89 82 81 Engine 10 | . 13 11 9 Core 1 | . . . 2 Treads 2 | . 18 . . Wheel 15 | . 7 19 14 Flight 2 | . . . 5 Device 6 | . 9 5 6 Storage 8 | . 15 8 6 Processor 1 | . . 3 . Protection 5 | . . 5 6 Energy Gun 5 | . . 5 6 Ballistic Gun 12 | . 22 14 7 Launcher 3 | . . . 5 Impact Weapon 5 | . . 7 4 Slashing Weapon 1 | . . . 2 Peak Build Rating 52 | 6 7 40 52 Average Rating 32 | 4 6 29 42 On Entrance 13 | . 6 6 40 Avg Prop Armor Cover (%) 1 | . . . 1 Naked Turns . | . . . . Heaviest Build 88 | 14 30 81 88 Greatest Support 40 | 40 40 36 36 Greatest Overweight (x) 14 | 3 3 5 14 Average Overweight (x) 2 | . . 1 3 Largest Inventory Capacity 15 | 8 15 15 15 Average Capacity 13 | 7 8 14 14 Most Carried 15 | 2 8 15 15 Average Carried 11 | 1 6 11 14 Final Capacity 15 | 8 15 15 5 Final Carried 15 | 2 7 15 5 Scrap Suit Usage (%) 1 | . . . 1 Class Distribution -------------------- 33% | Skirmisher 27% | Mutant 22% | Scavenger-Skirmisher 16% | Derelict-Skirmisher Dominant Class ---------------- Mutant | -10/Materials Skirmisher | -10/Subcaves Skirmisher | -8/Scraptown Resources | -11 -10 -10 -8 ----------- Run | Yrd Mat Sub Scr Matter Collected 1111 | 86 333 516 176 Remotely . | . . . . Salvage Created 714 | . 544 137 33 Parts 65 | . 50 12 3 Haulers Intercepted 1 | . 1 . . Recyclers Shooed . | . . . . Parts Field Recycled . | . . . . Retrieved Matter . | . . . . Parts Self-Destructed 13 | . . 13 . Prevented . | . . . . Parts Restored . | . . . . Kills | -11 -10 -10 -8 ------- Run | Yrd Mat Sub Scr Combat Hostiles Destroyed 22 | . 16 5 1 Melee 2 | . 2 . . Guns 16 | . 13 3 . AOE 3 | . . 2 1 Classes Destroyed 8 | . 6 1 1 Builder 1 | . 1 . . Tunneler 1 | . 1 . . Hauler 1 | . 1 . . Watcher 2 | . 2 . . Swarmer 9 | . 9 . . Grunt 7 | . 7 . . Subdweller 5 | . . 5 . Guru 1 | . . . 1 Best Kill Streak 7 | . 7 3 1 Combat Bots Only 6 | . 6 3 1 Max Kills in Single Turn 1 | . 1 1 1 Gunslinging . | . . . . Exploded 1 | . . 1 1 Melee 1 | . 1 . . Uniques/NPCs Destroyed . | . . . . Combat | -11 -10 -10 -8 -------- Run | Yrd Mat Sub Scr Hostile Shots Fired 152 | . 94 15 43 Missed 39 | . 25 3 11 Hits 113 | . 69 12 32 Projectile 113 | . 69 12 32 Critical Strikes 3 | . 1 1 1 Damage Taken 1421 | . 690 241 490 Core 256 | . 60 23 173 Absorbed by Shields . | . . . . Regen/Repaired (Parts) 19 | . 19 . . Core Remaining (%) 100 | 100 . . . Volleys Fired 74 | . 59 13 2 Largest 3 | . 2 3 1 Hottest 110 | . 40 110 40 Shots Fired 132 | . 102 28 2 Gun 124 | . 102 22 . Cannon . | . . . . Launcher 8 | . . 6 2 Special . | . . . . Kinetic 119 | . 102 15 2 Thermal 7 | . . 7 . Explosive 6 | . . 6 . Electromagnetic . | . . . . Robot Hit Streak 10 | . 7 10 . Robot Miss Streak 6 | . 6 1 . Penetration Max . | . . . . Secondary Targets 2 | . 1 1 . Max Gunslinging Chain 1 | . 1 1 . Shots Hit Robots 94 | . 72 22 . Core Hits 47 | . 28 10 9 Critical Kills . | . . . . Critical Parts Destroyed 1 | . 1 . . Critical Strikes 1 | . 1 . . Smash 1 | . 1 . . Melee Attacks 55 | . 13 42 . Impact 55 | . 13 42 . Slashing . | . . . . Piercing . | . . . . Sneak Attacks . | . . . . Combat Hostiles . | . . . . Follow-up Attacks . | . . . . Damage Inflicted 1948 | . 1100 628 220 Guns 1056 | . 795 261 . Cannons . | . . . . Explosions 587 | . . 367 220 Melee 290 | . 290 . . Ramming 15 | . 15 . . Kinetic 1191 | . 795 176 220 Thermal 85 | . . 85 . Explosive 367 | . . 367 . Electromagnetic . | . . . . Impact 290 | . 290 . . Slashing . | . . . . Piercing . | . . . . Highest Corruption 2 | . 2 2 2 Average Corruption 1 | . 1 2 1 Corruption Purged . | . . . . Corruption Blocked . | . . . . Effects 37 | . 6 20 11 Message Errors 9 | . 1 6 2 Matter Fused 5 | . . 4 1 Heat Flow Errors 10 | . 3 3 4 Energy Discharges 6 | . 1 3 2 Data Loss (minor) 4 | . 1 2 1 Data Loss (major) 1 | . . 1 . Misfires 1 | . . 1 . Alerts 1 | . . . 1 Overload Shots . | . . . . Overflow Damage 43 | . 43 . . Projectiles . | . . . . Explosions . | . . . . Melee 43 | . 43 . . Knockbacks 1 | . 1 . . Impact 1 | . 1 . . Kinetic . | . . . . Secondary . | . . . . Self-Inflicted Damage 5 | . 3 . 2 Shots 1 | . . . 1 Rammed 3 | . 3 . . Targets Rammed 3 | . 3 . . Kicked . | . . . . Crushed . | . . . . Highest Temperature 262 | . 262 223 246 Average Temperature 98 | . 112 111 82 Received Heat Transfer 520 | . 237 54 229 Effects 1 | . 1 . . Energy Bleed 1 | . 1 . . Siege Activations . | . . . . Martial Activations . | . . . . Shielding Activations . | . . . . Robots Disrupted . | . . . . Combat Hostiles . | . . . . Robots Corrupted 1 | . 1 . . Combat Hostiles 1 | . 1 . . Parts Fried 2 | . 2 . . Impact Corruptions 3 | . 3 . . Robots Melted . | . . . . Combat Hostiles . | . . . . Parts Melted . | . . . . Heat Transferred 100 | . . 100 . Parts Sabotaged . | . . . . Parts Stolen . | . . . . Parts Stripped . | . . . . Power Chain Reactions . | . . . . Alert | -11 -10 -10 -8 ------- Run | Yrd Mat Sub Scr Maximum Alert Level 1 | . 1 . . Low Security (%) 68 | 100 65 . . Level 1 31 | . 34 . . Level 2 . | . . . . Level 3 . | . . . . Level 4 . | . . . . Level 5 . | . . . . High Security . | . . . . Max Security . | . . . . Peak Influence 257 | . 257 . . Initial . | . . . . Average 113 | . 125 . . Influence Increases 492 | . 492 . . Destroy 0b10 Robot/C 320 | . 320 . . Destroy 0b10 Robot/NC 25 | . 25 . . Destroy Leader 76 | . 76 . . Successful Hack 11 | . 11 . . Lose Combat Pursuer 60 | . 60 . . Influence Decreases 492 | . 310 182 . Entered New Map 88 | . . 88 . Time Decay 374 | . 290 84 . Lost Part 30 | . 20 10 . Squads Dispatched 3 | . 3 . . Investigation 2 | . 2 . . Extermination . | . . . . Reinforcement 1 | . 1 . . Assault . | . . . . Garrison . | . . . . Intercept . | . . . . Searches Triggered . | . . . . Construction Impeded . | . . . . Haulers Reinforced . | . . . . Active Scanning Responses . | . . . . Cargo Convoy Interrupts . | . . . . Stealth | -11 -10 -10 -8 --------- Run | Yrd Mat Sub Scr Distress Signals 1 | . 1 . . Communications Jammed . | . . . . Distress Signals . | . . . . Times Spotted 52 | . 28 5 19 Peak Tracking Total 9 | . 4 2 9 Tactical Retreats 5 | . 4 . 1 Traps | -11 -10 -10 -8 ------- Run | Yrd Mat Sub Scr Traps Triggered 3 | . 3 . . Indirectly . | . . . . Trap Hack Attempts . | . . . . Triggered . | . . . . Disarmed . | . . . . Reprogrammed . | . . . . Reused . | . . . . Traps Extracted . | . . . . Installed . | . . . . Triggered . | . . . . Machines | -11 -10 -10 -8 ---------- Run | Yrd Mat Sub Scr Machines Disabled 2 | . 1 1 . Max in Single Turn 1 | . 1 1 . Machines Repaired . | . . . . Machines Dismantled . | . . . . Machines Sabotaged . | . . . . Overloaded Fab Kills . | . . . . Hacking | -11 -10 -10 -8 --------- Run | Yrd Mat Sub Scr Machines Accessed 12 | . 4 1 7 Terminals 3 | . 3 . . Fabricators . | . . . . Repair Stations 1 | . 1 . . Recycling Units . | . . . . Scanalyzers . | . . . . Garrison Access . | . . . . Total Hacks 54 | . 10 9 35 Successful 50 | . 6 9 35 Failed 4 | . 4 . . Catastrophic . | . . . . Database Lockouts . | . . . . Manual 7 | . 5 . 2 Terminals 8 | . 8 . . Fabricators . | . . . . Repair Stations 2 | . 2 . . Recycling Units . | . . . . Scanalyzers . | . . . . Garrison Access . | . . . . Terminal Hacks 48 | . 4 9 35 Record 42 | . . 8 34 Robot Analysis 2 | . 2 . . Zone Layout 2 | . 2 . . Proto ID Catalog 2 | . . 1 1 Fabricator Hacks . | . . . . Repair Station Hacks 2 | . 2 . . Scan Component 1 | . 1 . . Repair 1 | . 1 . . Recycling Unit Hacks . | . . . . Scanalyzer . | . . . . Garrison Access Hacks . | . . . . Unauthorized Hacks . | . . . . Terminals . | . . . . Fabricators . | . . . . Repair Stations . | . . . . Recycling Units . | . . . . Scanalyzers . | . . . . Garrison Access . | . . . . Data Cores Recovered . | . . . . Used . | . . . . Hacking Detections 3 | . 3 . . Full Trace Events 3 | . 3 . . Feedback Events 1 | . 1 . . Corruption 1 | . 1 . . Feedback Blocked . | . . . . Robot Schematics Acquired . | . . . . Robots Built . | . . . . Authchips . | . . . . Time . | . . . . Total Robot Build Rating . | . . . . Part Schematics Acquired . | . . . . Parts Built . | . . . . Authchips . | . . . . Time . | . . . . Total Part Build Rating . | . . . . Part Studies Acquired . | . . . . Parts Repaired 1 | . 1 . . Time 26 | . 26 . . Parts Recycled . | . . . . Recycled Matter . | . . . . Retrieved Matter . | . . . . Retrieved Components . | . . . . Parts Scanalyzed . | . . . . Part Schematics Acquired . | . . . . Parts Damaged . | . . . . Bothacking | -11 -10 -10 -8 ------------ Run | Yrd Mat Sub Scr Used RIF Installer . | . . . . Robots Hacked . | . . . . Non-combat . | . . . . Combat . | . . . . Robot Hacks Applied . | . . . . Relay Couplers Released . | . . . . Fabnet Peak Effective % . | . . . . Robots Rewired . | . . . . Allies Hacked . | . . . . Hacks Repelled . | . . . . Allies | -11 -10 -10 -8 -------- Run | Yrd Mat Sub Scr Total Allies . | . . . . Largest Group . | . . . . Highest-Rated Group . | . . . . Highest-Rated Ally . | . . . . Total Orders . | . . . . Ally Attacks . | . . . . Total Damage . | . . . . Kills . | . . . . Allies Corrupted . | . . . . Allies Melted 2 | . . . 2 Intel | -11 -10 -10 -8 ------- Run | Yrd Mat Sub Scr Active Infowar (turns) 4604 | . 542 1322 2740 Structural 4604 | . 542 1322 2740 Robot Analysis Total 2 | . 2 . . Derelict Logs Recovered 8 | . . 3 5 Drone Launches . | . . . . Drone Recoveries . | . . . . Exploration | -11 -10 -10 -8 ------------- Run | Yrd Mat Sub Scr Turns Passed 5565 | 81 795 1824 2865 Spaces Moved 3614 | 43 393 1314 1864 Core 87 | 16 23 . 48 Treads 225 | 27 198 . . Legs . | . . . . Wheels 3193 | . 171 1314 1708 Hover . | . . . . Flight 109 | . 1 . 108 Fastest Speed 34 | 50 80 95 34 Average Speed 136 | 165 127 122 148 Slowest Speed 1165 | 200 200 175 1165 Overloaded Moves . | . . . . Propulsion Burnouts . | . . . . Robots Hopped . | . . . . Potential Cave-ins . | . . . . Cave-ins Triggered . | . . . . Exploration Rate (%) 53 | 5 60 56 93 Regions Visited 3 Branch Regions 2 Pre-discovered Areas 2 | . . . 2 Known Exits Taken . | . . . . Unknown Exits Taken 3 | 1 1 1 . Scrap Searched 16 | . . 9 7 Spaces Dug . | . . . . Terrain Destroyed 69 | . . 31 38 Melee . | . . . . Projectile . | . . . . AOE 69 | . . 31 38 Terrain Rammed . | . . . . Walls Destroyed . | . . . . Machines Disabled . | . . . . Actions | -11 -10 -10 -8 --------- Run | Yrd Mat Sub Scr Total 4020 | 50 562 1439 1969 Wait 144 | . 64 19 61 Move 3611 | 42 392 1313 1864 Hop . | . . . . Pick Up 45 | 2 8 27 8 Fast Attach 26 | 6 7 4 9 Attach 8 | . 1 6 1 Detach 4 | . 1 1 2 Swap 13 | . 5 5 3 Drop 37 | . 9 9 19 Fire 74 | . 59 13 2 Melee 55 | . 13 42 . Ram 2 | . 2 . . Kick . | . . . . Crush 1 | . 1 . . Escape Stasis . | . . . . Rewire . | . . . . Trap . | . . . . Miscellaneous . | . . . . Route ------- -11/Scrapyard -10/Materials (discovered 4 exits: [*Mat x2] / [*Min] / *Sub) -10/Subcaves (discovered 3 exits: [*Mat] / [Rec] / *Scr) -8/Scraptown (discovered 1 exit: [*Fac]) History --------- Turn | Location | Event 27 | -11/Scrapyard | Discovered new exit (range 14) 82 | -11/Scrapyard | Entered Materials 167 | -10/Materials | Discovered new exit (range 17) 316 | -10/Materials | Build established: Mutant 391 | -10/Materials | Discovered new exit (range 8) 577 | -10/Materials | Discovered new exit (range 8) 711 | -10/Materials | Repaired Structural Scanner 819 | -10/Materials | Discovered new exit (range 10) 877 | -10/Materials | Entered Subcaves 878 | -10/Subcaves | Approached by a straggling Scientist 895 | -10/Subcaves | Learned 8 Materials zone layouts 1033 | -10/Subcaves | Shifting Twisted Machinery released Sub. Machine Gun 1063 | -10/Subcaves | Shifting Twisted Machinery released Scrap Shield 1106 | -10/Subcaves | Discovered new exit (range 9) 1203 | -10/Subcaves | A swath of the cavern ceiling suddenly collapsed 1250 | -10/Subcaves | Learned 4 Materials zone layouts 1280 | -10/Subcaves | Visited 4L-MR0's lab 1285 | -10/Subcaves | Learned 2 Materials zone layouts 1302 | -10/Subcaves | Found Tower Shield 1342 | -10/Subcaves | Attached Tower Shield, gained temporary slots: Power, Propulsion x2, Utility x2, Weapon x2 1482 | -10/Subcaves | Discovered new exit (range 9) 1685 | -10/Subcaves | Build established: Skirmisher 1953 | -10/Subcaves | Disturbed a concealed Subdweller 1955 | -10/Subcaves | Disturbed a concealed Subdweller 2569 | -10/Subcaves | Build established: Scavenger-Skirmisher 2700 | -10/Subcaves | Scientist uncovered a shortcut to Scraptown 2701 | -10/Subcaves | Entered Scraptown 3029 | -8/Scraptown | Scanned Subdweller tech in exchange for log data 3032 | -8/Scraptown | Learned Factory interactive machine intel 3033 | -8/Scraptown | Learned location of Quarantine (-3) 3035 | -8/Scraptown | Learned Factory machine intel 3036 | -8/Scraptown | Learned location of 2 exits from Lower Caves 3037 | -8/Scraptown | Learned Research interactive machine intel 3055 | -8/Scraptown | Discovered new exit (range 7) 3161 | -8/Scraptown | Visited Symbiants 3204 | -8/Scraptown | Visited Spacefarers 3309 | -8/Scraptown | Learned location of Extension (-6) 3452 | -8/Scraptown | System corruption cleaned by C-Scrubber 3586 | -8/Scraptown | Heard Great Nut preacher, LISTEN AND RECITE! 3677 | -8/Scraptown | Visited Comm Corps 3794 | -8/Scraptown | Visited Assassins FH 3835 | -8/Scraptown | Build established: Skirmisher 3892 | -8/Scraptown | Visited Junk Repository 3965 | -8/Scraptown | Visited UFD Registry 3965 | -8/Scraptown | Registered with UFD as "Ionsourcer" 3981 | -8/Scraptown | Visited SPCMW 4146 | -8/Scraptown | Visited Modified Component R&D 4239 | -8/Scraptown | Visited Infowarlord's Domain 4252 | -8/Scraptown | Found Active Sensor Suite 4268 | -8/Scraptown | Received an X-ray algorithm 4418 | -8/Scraptown | Visited Science Guys 4437 | -8/Scraptown | Ran an X-ray algorithm 4472 | -8/Scraptown | Visited DA-N13 Charitable Foundation 4502 | -8/Scraptown | Visited Scrapoid Pod Storage 4549 | -8/Scraptown | Found DCF Scrap (28 items) 4647 | -8/Scraptown | Visited Abandonware Association 4675 | -8/Scraptown | Learned abandonware demo "REPAIR.EXE" 4675 | -8/Scraptown | Ran an X-ray algorithm 4755 | -8/Scraptown | Delivered Scrap Shield to a Scientist 4815 | -8/Scraptown | Build established: Derelict-Skirmisher 4944 | -8/Scraptown | Visited Scrap Suit Storage 5017 | -8/Scraptown | Visited LU-1G1's Boring Crew 5138 | -8/Scraptown | Visited Botcube Research 5151 | -8/Scraptown | Found Botcube 5275 | -8/Scraptown | Met Optimus 5275 | -8/Scraptown | Accepted into 0bPrime 5404 | -8/Scraptown | Civil war broke out across Scraptown 5454 | -8/Scraptown | Found Unknown Device 5454 | -8/Scraptown | Identified Scrap Suit 5518 | -8/Scraptown | Core integrity fell below 50% 5562 | -8/Scraptown | Core integrity fell below 20% 5566 | -8/Scraptown | Optimus destroyed in the chaos of civil war 5566 | -8/Scraptown | Destroyed by 66-K9A(j) with Overtuned Pulse Rifle Last Messages --------------- 05477_ FQ-59J(j) destroyed. 05480_ Acquired 20 matter. 05494_ LG-ETB(h) destroyed. 05498_ F6-X4H(j) destroyed. 05503_ VT-TJD(E) suffers critical hit (Burn). 05506_ V9-XD7(j) destroyed. 05507_ M8-3HB(E) destroyed. 05508_ UH-B8A(j) destroyed. 05509_ VT-TJD(E) destroyed. 05511_ ZZ-K7G(j) destroyed. 05525_ EA-1T0(j) cannibalizes Ovr. Titanium Leg to repair Ovr. Titanium Leg. 05535_ Cesium-ion Thruster destroyed. 05537_ Critical hit (Burn: +50). 05541_ Dropped Nuclear Pulse Thruster. 05542_ Machine disabled. 05566_ ANNOUNCEMENT: The traitor Optimus has been dealt with. Put down any remaining collaborators. Map ----- +----------------------------------------------------+ | | | | | | | | | | | | | | | ?????????????????????????????????????????????????? | | ?????????????????????????????????????????????????? | | ?????????????????????????????????????????????????? | | ?????????????????????????????????????????????????? | | ?????????????????????????????????????????????????? | | ?????????????????????????????????????????????????? | | ?????????????????????????????????????????????????? | | ?????????????????????????????????????????????????? | | ???????????????????????####??????????????????????? | | ???????????????????????#########?????????????????? | | ??????????????????????### ######?????????????????? | | ????????????????????##### ##?????????????????? | | ?####################### ![= ##?????????????????? | | ?##################### *!=!!=##????"##??????????? | | ?#"""##"""##""|#; "##[ !!=!!!#### ?%###?????????? | | ##"" ##"" ##""|##!! ##%!!*!/%=!###j!*###?????????? | | ##"" [=%%*!=%=[%[!jg%=!##?????????? | | ## =/![[%=!%![=%==! ##?????????? | | ###################; ;=;[@=![#######?###?????????? | | #################### ###!j=[&############????????? | | ??????????????????????##!j[##############????????? | | ??????????????????????### !#"""""""""""##????????? | | ??###???####??###########=&#""""" X """##????????? | | ??###???####??###########!!#""" """"##????????? | | ??## ??? "??## ####%!#" "|""##????????? | | ??## """ ????## ####=!#""" """"##????????? | | ??## """ ?? ### | #### #"""" ""##????????? | | ??## ""? ### [& #### #"" ##????????? | | ??##" """ ### #### #"" "" "&##????????? | | ??##" ### #### #"" "" "&##????????? | | ??## ### #### # "##????????? | | ??##""""""????## #### #" ##????????? | | ####### ########### ##### ## ###########????????? | | ####### ########### ##### ## ###########????????? | | """"""" """"""""""" """"" "" "##"""" #"?????????? | | ## "#"?????????? | | ! "## "#"?????????? | | | /=! "## !"#"?????????? | | %! %%[ "## "#"?????????? | | * %!! *% "#"?????????? | | """""""""""" """"""""" " ## "#"?????????? | | """"""""""""""""""""""""" "##"""""#"?????????? | | ##### ################"" "##########????????? | +----------------------------------------------------+ Best States ------------- Heat Dissipation 25 Energy Generation 15 Energy Capacity 450 Matter Stores 300 Matter Capacity 300 Sight Range 16 Terrain Scan Density 10 Armor Coverage 2000 Evasion (%) 63 Targeting Accuracy 5 Recoil Reduction 2 Item Schematics ----------------- None Robot Schematics ------------------ None Fabricated ------------ Nothing Repaired ---------- Structural Scanner | 5% | -10/Materials Studied --------- None Alien Tech Used ----------------- None Achievements -------------- Low-level Research Mistaken Identity Nice Directions, Buddy Challenges ------------ None Game ------ Seed DirectedSigixProcessor Manual? 0 Play Time 00:58:14 Cumulative 21.9 hours Start 2025.12.30 @ 22:11:52 End 2025.12.30 @ 23:18:52 Sessions 1 Manual Loads 0 Difficulty Rogue Special Mode None Game No. 20 Rogue 20 Adventurer 0 Explorer 0 Win Type - Total 0 Types 0/0/0/0/0/0/0/0/0/0 Lore% 24 Gallery% 21 Achievement% 19 Wizard Run 0 Options --------- Layout 1 ASCII 0 Keyboard 0 Movement Numpad Keybinds 0 Fullscreen 1 Font 24/Smallcaps Map View 50x40 Zoom Use 0% Tactical HUD 1 Map Filters NONE Filters NONE Steam 1 RUN: 415e832a-a72e-4790-acbd-2785500d066e